bitfinex-derivatives/quotes_SOLF0:USTF0_20250228
["timestamp","ask_amount","ask_price","bid_price","bid_amount"]
[1740750541060,19.06,137.94,137.84,1.45095763]
[1740750541561,19.06,137.94,137.88,7.2564]
[1740750541765,19.06,137.94,137.84,1.45095763]
[1740750541962,19.06,137.98,137.85,3.6498]
[1740750542164,0.04911242,137.9,137.89,7.2563]
[1740750542362,19.06,137.98,137.89,7.2563]
[1740750542563,19.06,137.98,137.86,5.33434713]
[1740750542767,7.2525,137.97,137.86,5.33434713]
[1740750543059,40.87,137.98,137.86,1.45074713]
[1740750543259,40.87,137.98,137.83,7.2594]
[1740750543456,40.87,137.98,137.91,0.04679663]
[1740750543761,7.2559,137.9,137.82,3.6841]
[1740750543961,19.06,137.9,137.82,3.6841]
[1740750544765,0.04999929,137.87,137.85,0.05566174]
[1740750545860,19.06,137.95,137.85,0.05566174]
[1740750546065,19.06,137.99,137.86,1.45074713]
[1740750546265,19.06,137.99,137.92,7.2543]
[1740750546463,19.06,137.99,137.86,1.45074713]
[1740750546765,7.2504,138.01,137.94,7.2533]
[1740750547062,19.06,138.04,137.91,0.0539916]
[1740750547369,7.2494,138.03,137.96,7.2522]
[1740750547570,19.06,138.04,137.96,7.2522]
[1740750548167,54.89632948,138.1,137.95,7.2531]
[1740750548363,0.05338101,138.01,137.99,0.04930411]
[1740750548760,19.06,138.08,137.92,1.450116]
[1740750548957,0.0468021,138.01,137.99,0.05242073]
[1740750549164,7.2473,138.07,138.0,7.2505]
[1740750549362,232.06,138.11,137.96,19.06]
[1740750549559,232.06,138.11,137.97,1.44959049]
[1740750549759,7.2478,138.06,137.98,7.2515]
[1740750550069,232.06,138.11,137.98,7.2515]
[1740750550270,232.06,138.11,137.97,1.44959049]
[1740750550460,232.06,138.11,138.01,0.05336412]
[1740750550461,0.04898139,138.03,138.01,0.05336412]
[1740750550867,19.06,138.06,137.97,1.44959049]
[1740750551072,0.05407247,138.03,138.01,1.656e-05]
[1740750551375,0.05407247,138.03,137.89,3.7323]
[1740750551764,3.6547,138.05,137.89,3.7323]
[1740750552165,1.31371529,138.04,137.83,19.06]
[1740750552368,1.31371529,138.04,137.84,3.9142]
[1740750552568,0.04894193,137.95,137.92,7.19e-05]
[1740750552773,7.2542,137.93,137.92,7.19e-05]
[1740750553073,19.06,137.94,137.79,232.06]
[1740750553271,7.2573,137.88,137.79,239.3212]
[1740750553566,19.06,137.88,137.78,3.9142]
[1740750553771,19.06,137.88,137.82,0.04682929]
[1740750553772,0.04655221,137.85,137.82,0.04682929]
[1740750554173,7.30495221,137.85,137.82,0.04682929]
[1740750554875,7.259,137.84,137.77,3.8938]
[1740750555266,7.2607,137.81,137.72,14.8541]
[1740750555467,273.01,137.88,137.72,11.2324]
[1740750555877,7.2605,137.82,137.73,7.2647]
[1740750556075,19.10648787,137.81,137.79,0.05257403]
[1740750556273,7.2628,137.77,137.68,7.2669]
[1740750556471,19.06,137.81,137.65,11.1921]
[1740750556671,19.06,137.81,137.65,12.6450604]
[1740750556971,7.2626,137.78,137.65,12.6450604]
[1740750557172,19.06,137.81,137.66,1.45285485]
[1740750557378,0.04815733,137.73,137.7,0.05541016]
[1740750557675,26.3206,137.81,137.71,7.2658]
[1740750557872,0.05316878,137.73,137.71,7.2658]
[1740750558174,26.3206,137.81,137.66,1.45285485]
[1740750558175,19.06,137.81,137.73,7.2646]
[1740750558775,0.05513388,137.78,137.73,7.2646]
[1740750558973,0.05513388,137.78,137.76,0.0482808]
[1740750559174,19.06,137.81,137.74,7.2642]
[1740750559678,0.04735352,137.79,137.73,7.2646]
[1740750559866,0.04735352,137.79,137.76,0.05009713]
[1740750560066,0.04714187,137.77,137.76,0.05009713]
[1740750560573,19.06,137.81,137.76,0.05009713]
[1740750560776,0.04973767,137.78,137.76,0.05009713]
[1740750561978,19.06,137.86,137.76,0.05009713]
[1740750562479,19.06,137.86,137.7,19.06]
[1740750562771,0.92956586,137.88,137.71,1.45232735]
[1740750563175,0.05385374,137.81,137.78,0.05376737]
[1740750563375,0.92956586,137.88,137.78,0.05376737]
[1740750563573,0.92956586,137.88,137.85,7.258]
[1740750563775,19.06,137.9,137.79,1.45148414]
[1740750564080,19.06,137.94,137.79,1.45148414]
[1740750564278,19.06,137.94,137.87,7.257]
[1740750564478,7.2549,137.92,137.87,7.257]
[1740750564681,0.0485054,137.88,137.87,7.257]
[1740750564974,7.2549,137.92,137.87,7.257]
[1740750565279,0.05213555,137.89,137.88,7.2568]
[1740750565475,19.06,137.98,137.86,0.05280294]
[1740750565686,19.06,137.98,137.83,19.06]
[1740750565977,19.06,137.98,137.84,1.45095763]
[1740750566680,21.79,137.97,137.84,1.45095763]
[1740750566978,7.2553,137.91,137.9,0.04833928]
[1740750567177,26.3153,137.91,137.79,3.9118]
[1740750567380,19.06,137.91,137.79,9.16098414]
[1740750567585,19.06,137.91,137.8,1.4513788]
[1740750567786,19.06,137.95,137.8,1.4513788]
[1740750568583,0.05259159,137.89,137.86,0.05200374]
[1740750568976,19.06,137.95,137.8,1.4513788]
[1740750569281,0.0494235,137.89,137.86,0.04826759]
[1740750569483,7.2536,137.95,137.8,1.4513788]
[1740750569688,0.05537131,137.89,137.86,0.05208166]
[1740750569984,7.2543,137.93,137.86,7.2575]
[1740750570179,0.04793844,137.89,137.86,0.05067178]
[1740750570380,19.04,137.96,137.8,1.4513788]
[1740750570578,0.05435514,137.89,137.86,0.0464824]
[1740750570777,19.04,137.96,137.86,0.0464824]
[1740750570977,19.04,137.96,137.86,1.45074713]
[1740750571582,19.04,137.96,137.87,3.7318]
[1740750571979,0.05458918,137.93,137.9,0.04782841]
[1740750572179,19.04,137.98,137.87,7.6272]
[1740750572389,0.05242677,137.93,137.9,0.0543602]
[1740750572783,0.05242677,137.93,137.9,7.3097602]
[1740750573089,0.05242677,137.93,137.9,0.0543602]
[1740750573284,7.2551,137.92,137.9,0.0543602]
[1740750573682,0.05242677,137.93,137.9,0.0543602]
[1740750573982,0.05242677,137.93,137.91,7.2552]
[1740750574179,0.05242677,137.93,137.9,0.0543602]
[1740750574654,0.05242677,137.93,137.92,7.2547]
[1740750574872,0.0748,138.02,137.9,0.0543602]
[1740750574992,7.2505,138.01,137.87,7.6272]
[1740750575193,117.14065838,138.08,137.87,7.6272]
[1740750575494,7.2502,138.01,137.87,7.6272]
[1740750575693,19.04,138.05,137.87,7.6272]
[1740750575882,8.049e-05,137.95,137.93,0.04573057]
[1740750576085,8.049e-05,137.95,137.94,7.2537]
[1740750576286,116.96515838,138.08,137.93,3.62]
[1740750576485,116.96515838,138.08,137.92,19.04]
[1740750576789,116.96515838,138.08,137.93,1.45001087]
[1740750577190,0.04590831,138.01,137.98,0.04940587]
[1740750577391,9.95852324,138.12,137.98,0.04940587]
[1740750577691,7.2464,138.08,138.03,7.2488]
[1740750577888,9.95852324,138.12,137.99,7.3924]
[1740750578393,31.76852324,138.12,137.95,232.12]
[1740750578686,7.2479,138.05,138.04,0.05146465]
[1740750578891,19.06893992,138.07,138.04,0.05146465]
[1740750579392,0.04893992,138.07,138.04,0.05146465]
[1740750580893,7.29603992,138.07,138.04,0.05146465]
[1740750581095,0.04893992,138.07,138.04,0.05146465]
[1740750581397,0.04893992,138.07,137.95,232.12]
[1740750581596,0.04893992,138.07,137.94,30.262]
[1740750581896,19.02,138.1,137.98,7.2514]
[1740750582082,19.02,138.1,137.95,1.44980065]
[1740750582593,0.04677873,138.04,138.01,0.04903349]
[1740750582989,19.02,138.1,137.95,1.44980065]
[1740750583389,0.04941686,138.04,138.01,0.05418032]
[1740750583689,19.02,138.1,137.95,1.44980065]
[1740750583991,0.04868738,138.04,138.01,0.05576503]
[1740750584192,0.04868738,138.04,138.03,7.249]
[1740750584487,19.0,138.14,138.0,19.0]
[1740750584689,0.05234222,138.05,138.02,0.05370367]
[1740750584892,1.31269227,138.13,137.96,19.0]
[1740750585085,1.31269227,138.13,138.02,0.05418305]
[1740750585289,0.05048895,138.05,138.02,0.05418305]
[1740750585489,1.31269227,138.13,137.96,19.0]
[1740750585695,0.04606952,138.05,138.02,0.04565066]
[1740750586095,19.0,138.08,137.97,8.70129049]
[1740750586290,0.04709382,138.05,138.02,0.05231941]
[1740750586494,0.04709382,138.05,137.94,11.242]
[1740750586692,0.04709382,138.05,137.95,7.2527]
[1740750586893,3.5468,138.07,137.94,11.242]
[1740750587793,0.0461139,138.02,137.99,7.29811145]
[1740750587999,0.0461139,138.02,137.99,0.04741145]
[1740750590500,0.0461139,138.02,138.01,7.25]
[1740750591299,0.0461139,138.02,137.99,7.29841145]
[1740750591499,0.0461139,138.02,137.99,0.04741145]
[1740750592396,7.2503,138.01,137.99,0.04741145]
[1740750592602,0.0461139,138.02,137.94,1.44990575]
[1740750592603,19.0461139,138.02,137.94,1.44990575]
[1740750592901,7.2507,138.0,137.94,1.44990575]
[1740750593199,19.0,138.02,137.94,1.44990575]
[1740750593593,7.2514,137.99,137.94,1.44990575]
[1740750593898,0.055305,137.99,137.97,0.05158784]
[1740750595101,0.055305,137.99,137.94,1.44990575]
[1740750595704,7.253,137.96,137.94,1.44990575]
[1740750595899,18.98,137.96,137.89,3.6583]
[1740750596304,18.98,137.96,137.91,0.05276505]
[1740750596503,0.05398915,137.94,137.91,0.05276505]
[1740750597003,0.05398915,137.94,137.91,7.30766505]
[1740750597202,7.2561,137.9,137.75,9.82669544]
[1740750597393,18.98,137.93,137.82,3.6529]
[1740750597595,18.98,137.93,137.82,10.9128]
[1740750597800,7.2559,137.9,137.82,10.9128]
[1740750598203,18.98,137.93,137.82,10.9128]
[1740750598410,0.04707604,137.87,137.85,0.05197877]
[1740750598902,18.98,137.93,137.85,0.05197877]
[1740750599107,0.05345756,137.87,137.85,0.05197877]
[1740750599301,18.98,137.93,137.85,0.05197877]
[1740750599503,0.05543816,137.9,137.85,0.05197877]
[1740750599805,0.05543816,137.9,137.85,0.03107877]
[1740750600006,7.2579,137.86,137.85,0.03107877]
[1740750600208,0.05543816,137.9,137.85,0.03107877]
[1740750600403,0.16,137.92,137.85,0.03107877]
[1740750600612,7.2567,137.89,137.85,0.03107877]
[1740750601005,0.05537413,137.88,137.85,0.03107877]
[1740750601207,18.98,137.87,137.76,7.5712]
[1740750601804,40.79,137.87,137.71,3.6287]
[1740750602110,0.1696,137.86,137.72,3.6818]
[1740750602411,232.2696,137.86,137.72,3.6818]
[1740750602612,0.05262473,137.8,137.78,0.05518107]
[1740750603108,232.2696,137.86,137.78,0.05518107]
[1740750603314,0.04674053,137.8,137.78,0.05518107]
[1740750603517,18.98,137.81,137.78,0.05518107]
[1740750603810,0.04782596,137.8,137.78,0.05518107]
[1740750604812,39.50835272,137.91,137.78,0.05518107]
[1740750605008,39.50835272,137.91,137.73,18.98]
[1740750605212,39.50835272,137.91,137.83,7.259]
[1740750605716,39.50835272,137.91,137.79,18.98]
[1740750606013,0.05310144,137.88,137.86,0.05110421]
[1740750606514,0.05310144,137.88,137.74,20.43201103]
[1740750606717,18.98,137.87,137.74,1.45201103]
[1740750607107,44.91505355,137.86,137.64,119.68800934]
[1740750607313,1.31505355,137.85,137.65,116.77463319]
[1740750607917,0.04734442,137.77,137.74,0.04893627]
[1740750608109,18.98,137.76,137.74,0.04893627]
[1740750608412,26.29039638,137.76,137.74,0.04735341]
[1740750608613,19.02719638,137.76,137.74,0.04735341]
[1740750610319,0.04719638,137.76,137.74,0.04735341]
[1740750611416,7.31049638,137.76,137.74,0.04735341]
[1740750611621,0.04719638,137.76,137.74,0.04735341]
[1740750611818,7.2637,137.75,137.74,0.04735341]
[1740750612017,0.04719638,137.76,137.67,7.2675]
[1740750612421,7.2649,137.73,137.67,7.2675]
[1740750613227,0.04852535,137.71,137.69,0.04718476]
[1740750614527,0.04852535,137.71,137.69,7.31388476]
[1740750614827,0.04852535,137.71,137.69,0.04718476]
[1740750615017,7.2632,137.76,137.69,0.04718476]
[1740750615225,18.98,137.8,137.65,7.3898]
[1740750615430,21.81,137.79,137.56,18.98]
[1740750615625,21.81,137.79,137.62,7.7122]
[1740750615825,18.98,137.8,137.65,1.4529604]
[1740750616032,18.98,137.79,137.65,1.4529604]
[1740750616224,0.04746485,137.74,137.71,0.05370504]
[1740750616629,7.2653,137.72,137.71,0.05370504]
[1740750617224,3.64,137.72,137.65,1.4529604]
[1740750617432,18.98,137.73,137.65,1.4529604]
[1740750617729,19.6082,137.73,137.62,3.7801]
[1740750617924,19.6082,137.73,137.56,3.9072]
[1740750618230,19.6082,137.73,137.56,5.36111102]
[1740750618433,0.05484725,137.66,137.63,0.05363519]
[1740750618821,7.2667,137.7,137.56,5.36111102]
[1740750619023,0.04736778,137.66,137.63,0.05334535]
[1740750619230,18.98,137.75,137.63,0.05334535]
[1740750619426,0.63,137.79,137.57,1.45380533]
[1740750619427,18.98,137.74,137.62,3.8051]
[1740750620530,0.04613808,137.69,137.67,0.05471936]
[1740750620830,18.98,137.74,137.67,0.05471936]
[1740750621031,0.05530892,137.69,137.67,0.05471936]
[1740750621227,18.98,137.74,137.67,0.05471936]
[1740750621426,0.04793814,137.69,137.67,0.05471936]
[1740750621628,18.98,137.74,137.67,0.05471936]
[1740750621830,0.05008626,137.69,137.67,0.05471936]
[1740750622030,0.04857854,137.69,137.67,0.05471936]
[1740750622334,18.98,137.74,137.67,0.05471936]
[1740750622630,0.0735,137.81,137.67,0.05471936]
[1740750622835,18.98,137.83,137.68,1.45264381]
[1740750623028,1.31560932,137.82,137.69,3.7623]
[1740750623430,0.05004227,137.77,137.74,7.522e-05]
[1740750623733,7.2637,137.75,137.74,7.522e-05]
[1740750624127,10.8837,137.75,137.74,7.522e-05]
[1740750625835,12.20002222,137.75,137.74,7.522e-05]
[1740750626035,10.8837,137.75,137.74,7.522e-05]
[1740750626335,32.6937,137.75,137.74,7.522e-05]
[1740750626536,48.53634613,137.75,137.6,3.867]
[1740750626732,44.91634613,137.75,137.6,3.867]
[1740750627132,1.31634613,137.74,137.6,3.867]
[1740750627533,7.2683,137.67,137.6,3.867]
[1740750627734,0.05021839,137.68,137.66,0.05431202]
[1740750627933,18.98,137.69,137.56,3.592]
[1740750628235,0.05158612,137.68,137.66,0.04864473]
[1740750628434,18.98,137.69,137.57,5.38330533]
[1740750628635,0.04652416,137.68,137.66,0.04669855]
[1740750628833,18.98,137.69,137.57,5.38330533]
[1740750629031,18.98,137.69,137.58,1.45369966]
[1740750629238,0.05534922,137.68,137.66,0.046097]
[1740750629439,18.98,137.69,137.61,7.2707]
[1740750629643,7.2679,137.67,137.66,0.05274078]
[1740750629939,18.98,137.69,137.58,1.45369966]
[1740750630141,7.2685,137.66,137.58,1.45369966]
[1740750630343,7.2685,137.66,137.65,0.0483799]
[1740750630538,18.98,137.69,137.6,7.2714]
[1740750630737,7.2688,137.66,137.64,0.0518495]
[1740750631141,0.05137858,137.67,137.64,0.0518495]
[1740750632043,7.2688,137.66,137.64,0.0518495]
[1740750632243,0.05137858,137.67,137.64,0.0518495]
[1740750633245,7.31947858,137.67,137.64,0.0518495]
[1740750633445,0.05137858,137.67,137.64,0.0518495]
[1740750633745,7.269,137.65,137.64,0.0518495]
[1740750635236,7.2686,137.66,137.64,0.0518495]
[1740750635645,0.05137858,137.67,137.64,0.0518495]
[1740750636440,18.96,137.73,137.64,0.0518495]
[1740750636843,18.96,137.73,137.6,18.96]
[1740750637039,18.96,137.75,137.6,18.96]
[1740750637241,9.95852324,137.76,137.6,18.96]
[1740750637440,7.264,137.75,137.7,7.266]
[1740750637646,9.95852324,137.76,137.66,0.0511661]
[1740750637846,0.05476984,137.74,137.66,18.96]
[1740750638142,9.95852324,137.76,137.7,0.04630095]
[1740750638541,39.50835272,137.75,137.7,0.04630095]
[1740750638740,109.72826833,137.76,137.75,7.2637]
[1740750638941,98.01926833,137.76,137.75,7.2637]
[1740750639741,98.01926833,137.76,137.74,0.046109]
[1740750641437,7.2637,137.75,137.74,0.046109]
[1740750641946,105.28256833,137.76,137.74,0.046109]
[1740750642145,98.01926833,137.76,137.74,0.046109]
[1740750642340,0.05237556,137.77,137.74,0.046109]
[1740750642844,0.05237556,137.77,137.64,261.36669544]
[1740750643048,19.01237556,137.77,137.64,28.78669544]
[1740750643347,18.96,137.76,137.64,28.78669544]
[1740750643548,7.266,137.71,137.65,7.2686]
[1740750643750,18.96,137.76,137.65,7.2686]
[1740750644044,7.2655,137.72,137.69,0.05325405]
[1740750644249,0.05255959,137.72,137.69,0.05325405]
[1740750644849,0.05255959,137.72,137.63,18.94]
[1740750645049,0.05255959,137.72,137.64,1.45306596]
[1740750645245,7.2628,137.77,137.72,7.2648]
[1740750645445,232.48,137.81,137.69,18.94]
[1740750645645,22.6372,137.82,137.7,1.45243282]
[1740750645845,3.6972,137.82,137.7,1.45243282]
[1740750646041,0.05384433,137.77,137.75,0.04652008]
[1740750646441,3.6972,137.82,137.75,0.04652008]
[1740750646646,0.05569211,137.77,137.75,0.04652008]
[1740750646950,3.6972,137.82,137.75,0.04652008]
[1740750647351,0.05293359,137.77,137.75,0.04652008]
[1740750647551,3.6972,137.82,137.75,0.04652008]
[1740750647748,0.05568721,137.77,137.75,0.04652008]
[1740750647947,3.6972,137.82,137.75,0.04652008]
[1740750648146,3.634,137.81,137.75,0.04652008]
[1740750648348,0.04666644,137.77,137.75,0.04652008]
[1740750650054,0.04666644,137.77,137.7,1.45243282]
[1740750650951,7.2651,137.73,137.7,1.45243282]
[1740750651346,3.7021,137.76,137.7,1.50325923]
[1740750651547,7.2653,137.72,137.7,1.50325923]
[1740750651746,0.05101542,137.73,137.7,1.50325923]
[1740750651951,0.05101542,137.73,137.7,0.05082641]
[1740750652148,7.2658,137.71,137.7,0.05082641]
[1740750652353,3.6504,137.72,137.6,232.44]
[1740750652554,3.6504,137.72,137.61,1.45338274]
[1740750653150,3.6504,137.72,137.68,7.2669]
[1740750653454,3.6504,137.72,137.62,0.0994]
[1740750653645,0.05383715,137.71,137.69,0.04636802]
[1740750653849,0.05383715,137.71,137.66,18.92]
[1740750654050,0.05383715,137.71,137.69,0.05365078]
[1740750654644,0.05383715,137.71,137.63,1.45317154]
[1740750654956,7.2688,137.66,137.63,1.45317154]
[1740750655364,18.92,137.73,137.63,1.45317154]
[1740750655365,7.269,137.65,137.63,1.45317154]
[1740750655552,18.92,137.73,137.63,1.45317154]
[1740750655956,0.05171015,137.69,137.67,0.04809555]
[1740750656252,0.05171015,137.69,137.63,1.45317154]
[1740750657150,0.05171015,137.69,137.65,0.05231638]
[1740750657658,7.2695,137.64,137.57,26.1928]
[1740750657850,0.05197811,137.68,137.66,0.05414987]
[1740750658155,0.04956045,137.62,137.59,7.2717]
[1740750658350,18.92,137.73,137.57,18.92]
[1740750658757,18.92,137.73,137.6,7.2713]
[1740750659055,0.04802922,137.68,137.65,0.05167887]
[1740750659255,7.2684,137.66,137.65,0.05167887]
[1740750659451,3.8933,137.67,137.58,1.45369966]
[1740750659752,22.8133,137.67,137.58,1.45369966]
[1740750659955,3.7588,137.66,137.58,1.45369966]
[1740750660758,0.05527339,137.63,137.58,1.45369966]
[1740750661553,7.32557339,137.63,137.58,1.45369966]
[1740750661753,0.05527339,137.63,137.58,1.45369966]
[1740750662160,0.05527339,137.63,137.6,7.2715]
[1740750662353,0.05527339,137.63,137.58,1.45369966]
[1740750662755,0.05527339,137.63,137.59,7.2718]
[1740750663560,0.05527339,137.63,137.58,1.45369966]
[1740750663767,18.92,137.62,137.47,130.42839192]
[1740750664060,3.6084,137.61,137.47,18.92]
[1740750664262,3.6084,137.61,137.48,0.3039]
[1740750664464,0.04946635,137.56,137.48,0.3039]
[1740750664666,18.96946635,137.56,137.44,119.68800934]
[1740750665160,18.92,137.56,137.47,7.2784]
[1740750665363,0.05570644,137.51,137.47,7.2784]
[1740750665765,0.05570644,137.51,137.46,7.2788]
[1740750666067,0.05570644,137.51,137.46,18.92]
[1740750666268,22.7446,137.6,137.46,18.92]
[1740750666562,3.6084,137.61,137.46,18.92]
[1740750666964,3.6084,137.61,137.44,119.68800934]
[1740750667160,7.2761,137.52,137.47,7.2782]
[1740750667468,0.04683701,137.54,137.51,0.049158]
[1740750667670,7.2758,137.52,137.51,0.049158]
[1740750667864,3.7501,137.57,137.45,18.92]
[1740750668070,0.05178538,137.53,137.5,0.04617161]
[1740750669172,7.2764,137.51,137.5,0.04617161]
[1740750669470,0.05178538,137.53,137.5,0.04617161]
[1740750669771,7.2759,137.52,137.5,0.04617161]
[1740750669976,0.05178538,137.53,137.41,0.3039]
[1740750670169,0.05178538,137.53,137.42,1.45539222]
[1740750670371,7.2778,137.49,137.44,7.2797]
[1740750670572,18.92,137.52,137.42,1.45539222]
[1740750670770,3.8046,137.51,137.42,1.45539222]
[1740750671269,0.05004753,137.48,137.42,1.45539222]
[1740750671469,0.05004753,137.48,137.43,7.2802]
[1740750671670,0.05004753,137.48,137.42,1.45539222]
[1740750672673,0.05004753,137.48,137.33,138.60800934]
[1740750672969,3.8046,137.51,137.34,81.61201453]
[1740750673272,0.04784481,137.42,137.34,81.61201453]
[1740750673472,0.04784481,137.42,137.41,7.2817]
[1740750673869,3.8046,137.51,137.39,18.92]
[1740750674065,7.2778,137.49,137.4,1.45560407]
[1740750674368,3.8046,137.51,137.4,1.45560407]
[1740750674568,3.8906,137.48,137.4,1.45560407]
[1740750675072,0.05384194,137.45,137.43,0.04917751]
[1740750675274,0.05384194,137.45,137.4,1.45560407]
[1740750675671,0.05384194,137.45,137.31,1.7177]
[1740750675871,0.05384194,137.45,137.26,127.98607045]
[1740750676072,273.53,137.46,137.27,1.45698258]
[1740750676271,1.31920774,137.45,137.31,7.2868]
[1740750676471,0.04614479,137.38,137.27,1.45698258]
[1740750676867,7.6369,137.39,137.27,1.45698258]
[1740750677075,0.04943753,137.34,137.27,1.45698258]
[1740750677874,0.04943753,137.34,137.32,7.2862]
[1740750678274,0.04943753,137.34,137.27,1.45698258]
[1740750678573,0.04943753,137.34,137.32,7.286]
[1740750678774,18.92,137.43,137.29,18.92]
[1740750678971,7.2823,137.4,137.36,7.2843]
[1740750679273,18.92,137.43,137.3,1.45666423]
[1740750679468,18.92,137.43,137.3,1.61716423]
[1740750680175,5.42e-05,137.38,137.35,0.05520983]
[1740750680372,5.42e-05,137.38,137.36,18.92]
[1740750680578,3.7151,137.51,137.37,0.1605]
[1740750681278,18.92,137.5,137.36,18.92]
[1740750681474,0.05538577,137.45,137.43,0.05133146]
[1740750681877,18.92,137.5,137.43,0.05133146]
[1740750682065,0.05215512,137.45,137.43,0.05133146]
[1740750682271,3.7151,137.51,137.43,0.05133146]
[1740750682572,6.422e-05,137.45,137.43,3.69133146]
[1740750682777,7.6297,137.53,137.49,7.2771]
[1740750683270,7.6297,137.53,137.43,0.1553]
[1740750683471,3.7486,137.53,137.5,7.2768]
[1740750683776,6.396e-05,137.49,137.47,0.05389051]
[1740750683972,7.2818,137.57,137.45,1.5241]
[1740750684174,7.2818,137.57,137.46,1.45496871]
[1740750684477,3.7151,137.57,137.46,1.45496871]
[1740750684975,0.04718457,137.53,137.5,0.05089843]
[1740750685176,0.04718457,137.53,137.52,7.2755]
[1740750685379,3.5667,137.59,137.5,18.9]
[1740750685575,0.05229173,137.54,137.51,0.04990402]
[1740750686081,9.173e-05,137.54,137.53,7.2753]
[1740750686775,9.173e-05,137.54,137.53,10.9153]
[1740750687083,11.5791,137.67,137.53,3.64]
[1740750687380,11.5791,137.67,137.54,1.5145]
[1740750687579,11.5791,137.67,137.55,1.45401672]
[1740750687784,11.5791,137.67,137.56,18.9]
[1740750688170,18.9,137.75,137.56,18.9]
[1740750688375,2.258e-05,137.63,137.6,0.05212862]
[1740750688577,2.258e-05,137.63,137.61,1.45338274]
[1740750688886,11.7375,137.75,137.62,18.9]
[1740750689079,11.7375,137.75,137.63,1.59867154]
[1740750689480,19.0013,137.75,137.63,1.59867154]
[1740750689679,0.04940086,137.7,137.68,0.04831268]
[1740750690077,11.7375,137.75,137.68,0.04831268]
[1740750690388,0.04921917,137.7,137.68,7.31521268]
[1740750690774,11.7375,137.75,137.68,0.04831268]
[1740750691283,0.05255595,137.7,137.63,1.45317154]
[1740750691488,18.88,137.7,137.63,1.45317154]
[1740750691688,7.2685,137.66,137.63,1.45317154]
[1740750691882,18.88,137.7,137.63,1.45317154]
[1740750692283,7.267,137.69,137.63,1.45317154]
[1740750692489,0.04900229,137.68,137.65,0.05283367]
[1740750692787,7.27,137.63,137.57,18.88]
[1740750692988,7.4223,137.67,137.58,7.2723]
[1740750693184,7.4223,137.67,137.53,18.88]
[1740750693787,7.4223,137.67,137.56,2.99272583]
[1740750693989,0.04720499,137.62,137.6,0.0507973]
[1740750694386,7.4223,137.67,137.6,0.0507973]
[1740750694891,0.05271478,137.62,137.48,234.3209]
[1740750695187,7.4223,137.67,137.48,234.3209]
[1740750695389,18.88,137.66,137.48,234.3209]
[1740750695591,18.88,137.66,137.49,1.33635317]
[1740750695996,0.05443133,137.59,137.56,0.04618729]
[1740750696284,7.4223,137.67,137.53,18.88]
[1740750696494,14.6906,137.67,137.53,18.88]
[1740750696689,7.4223,137.67,137.56,0.05391941]
[1740750696991,0.05148174,137.61,137.56,0.05391941]
[1740750697294,0.05148174,137.61,137.53,18.88]
[1740750697592,0.05148174,137.61,137.58,7.2722]
[1740750698097,0.05148174,137.61,137.59,7.272]
[1740750698394,0.05148174,137.61,137.57,0.05361109]
[1740750698597,0.05148174,137.61,137.6,7.2716]
[1740750699487,8.174e-05,137.61,137.6,7.2716]
[1740750700698,8.174e-05,137.61,137.6,12.36508837]
[1740750701088,8.174e-05,137.61,137.6,8.72508837]
[1740750701296,8.174e-05,137.61,137.6,12.36508837]
[1740750702199,3.8751,137.77,137.72,7.2652]
[1740750702497,7.2648,137.73,137.65,18.86]
[1740750702693,3.8751,137.77,137.65,18.86]
[1740750703498,0.05012216,137.72,137.71,7.2654]
[1740750703693,3.8751,137.77,137.71,7.2654]
[1740750703996,0.04940688,137.73,137.7,0.05011051]
[1740750704187,6.88e-06,137.73,137.7,0.05011051]
[1740750704389,6.88e-06,137.73,137.72,7.2652]
[1740750706494,6.88e-06,137.73,137.71,7.2656]
[1740750706801,6.88e-06,137.73,137.7,0.05011051]
[1740750707003,6.88e-06,137.73,137.71,7.2658]
[1740750707195,6.88e-06,137.73,137.7,0.05011051]
[1740750708801,6.88e-06,137.73,137.7,7.31631051]
[1740750709399,6.88e-06,137.73,137.71,7.2658]
[1740750709599,6.88e-06,137.73,137.7,0.05011051]
[1740750710597,6.88e-06,137.73,137.72,7.2653]
[1740750710902,6.88e-06,137.73,137.7,0.05011051]
[1740750711099,6.88e-06,137.73,137.7,7.31611051]